bitfinex-derivatives/quotes_ETHF0:USTF0_20260118
["timestamp","ask_amount","ask_price","bid_price","bid_amount"]
[1768710981662,0.9731902,3313.2,3311.5,0.41852327]
[1768710981866,0.95036765,3313.1,3311.5,0.41852327]
[1768710982066,0.9731902,3313.2,3311.5,0.41852327]
[1768710982270,0.95042135,3313.1,3311.5,0.41852327]
[1768710982468,0.9731902,3313.2,3311.5,0.41852327]
[1768710982667,0.95042908,3313.1,3311.5,0.41852327]
[1768710982964,0.9731902,3313.2,3311.5,0.41852327]
[1768710983169,0.95043962,3313.1,3311.5,0.41852327]
[1768710983469,0.9731902,3313.2,3311.5,0.41852327]
[1768710983763,0.95050638,3313.1,3311.5,0.41852327]
[1768710983966,0.9731902,3313.2,3311.5,0.41852327]
[1768710984163,0.95050552,3313.1,3311.5,0.41852327]
[1768710984366,0.9731902,3313.2,3311.5,0.41852327]
[1768710984577,0.95056019,3313.1,3311.5,0.41852327]
[1768710984769,0.9731902,3313.2,3311.5,0.41852327]
[1768710984970,0.95056008,3313.1,3311.5,0.41852327]
[1768710985171,0.9731902,3313.2,3311.5,0.41852327]
[1768710985369,0.95062591,3313.1,3311.5,0.41852327]
[1768710985572,0.9731902,3313.2,3311.5,0.41852327]
[1768710985771,0.95063763,3313.1,3311.5,0.41852327]
[1768710985978,0.9731902,3313.2,3311.5,0.41852327]
[1768710986176,0.95063763,3313.1,3311.5,0.41852327]
[1768710986481,0.9731902,3313.2,3311.5,0.41852327]
[1768710986681,0.9507229,3313.1,3311.5,0.41852327]
[1768710986882,0.9731902,3313.2,3311.5,0.41852327]
[1768710987083,0.95083096,3313.1,3311.5,0.41852327]
[1768710987378,0.9731902,3313.2,3311.5,0.41852327]
[1768710987583,0.95093849,3313.1,3311.5,0.41852327]
[1768710987887,0.9731902,3313.2,3311.5,0.41852327]
[1768710988076,0.95094377,3313.1,3311.5,0.41852327]
[1768710988273,0.9731902,3313.2,3311.5,0.41852327]
[1768710988475,0.95111144,3313.1,3311.5,0.41852327]
[1768710988675,0.9731902,3313.2,3311.5,0.41852327]
[1768710988874,0.95111144,3313.1,3311.5,0.41852327]
[1768710989183,0.95126585,3313.0,3311.5,0.41852327]
[1768710989383,0.9731902,3313.2,3311.5,0.41852327]
[1768710989583,0.95127678,3313.1,3311.5,0.41852327]
[1768710989785,0.95127678,3313.0,3311.5,0.41852327]
[1768710990079,0.9731902,3313.2,3311.5,0.41852327]
[1768710990384,0.95127677,3313.1,3311.5,0.41852327]
[1768710990584,0.95127677,3313.0,3311.5,0.41852327]
[1768710990882,0.9731902,3313.2,3311.5,0.41852327]
[1768710991082,0.95128736,3313.1,3311.5,0.41852327]
[1768710991285,0.95128736,3313.0,3311.5,0.41852327]
[1768710991583,0.9731902,3313.2,3311.5,0.41852327]
[1768710991783,0.95145846,3313.1,3311.5,0.41852327]
[1768710991986,0.95145846,3313.0,3311.5,0.41852327]
[1768710992186,0.9731902,3313.2,3311.5,0.41852327]
[1768710992387,0.95146342,3313.1,3311.5,0.41852327]
[1768710992602,0.95146342,3313.0,3311.5,0.41852327]
[1768710992889,0.9731902,3313.2,3311.5,0.41852327]
[1768710993079,0.95170096,3313.1,3311.5,0.41852327]
[1768710993279,0.95170096,3313.0,3311.5,0.41852327]
[1768710993479,0.9731902,3313.2,3311.5,0.41852327]
[1768710993679,0.95178935,3313.1,3311.5,0.41852327]
[1768710993880,0.95178935,3313.0,3311.5,0.41852327]
[1768710994081,0.9731902,3313.2,3311.5,0.41852327]
[1768710994282,0.95178929,3313.1,3311.5,0.41852327]
[1768710994483,0.95178929,3313.0,3311.5,0.41852327]
[1768710994684,0.9731902,3313.2,3311.5,0.41852327]
[1768710994984,0.95180541,3313.1,3311.5,0.41852327]
[1768710995290,0.95180541,3313.0,3311.5,0.41852327]
[1768710995490,0.9731902,3313.2,3311.5,0.41852327]
[1768710995789,0.95182513,3313.1,3311.5,0.41852327]
[1768710995990,0.95182513,3313.0,3311.5,0.41852327]
[1768710996181,0.9731902,3313.2,3311.5,0.41852327]
[1768710996377,0.95182654,3313.1,3311.5,0.41852327]
[1768710996590,0.95182654,3313.0,3311.5,0.41852327]
[1768710996791,0.9731902,3313.2,3311.5,0.41852327]
[1768710996990,0.95197072,3313.1,3311.5,0.41852327]
[1768710997186,0.95197072,3313.0,3311.5,0.41852327]
[1768710997381,0.9731902,3313.2,3311.5,0.41852327]
[1768710997584,0.95210213,3313.1,3311.5,0.41852327]
[1768710997884,0.95210213,3313.0,3311.5,0.41852327]
[1768710998083,0.9731902,3313.2,3311.5,0.41852327]
[1768710998291,0.95210387,3313.1,3311.5,0.41852327]
[1768710998587,0.95210387,3313.0,3311.5,0.41852327]
[1768710998788,0.9731902,3313.2,3311.5,0.41852327]
[1768710998989,0.95213493,3313.1,3311.5,0.41852327]
[1768710999284,0.95213493,3313.0,3311.5,0.41852327]
[1768710999488,0.9731902,3313.2,3311.5,0.41852327]
[1768710999788,0.95217884,3313.1,3311.5,0.41852327]
[1768710999988,0.95217884,3313.0,3311.5,0.41852327]
[1768711000184,0.9731902,3313.2,3311.5,0.41852327]
[1768711000384,0.95217794,3313.1,3311.5,0.41852327]
[1768711000587,0.95217794,3313.0,3311.5,0.41852327]
[1768711000785,0.9731902,3313.2,3311.5,0.41852327]
[1768711000985,0.95222779,3313.1,3311.5,0.41852327]
[1768711001189,0.95222779,3313.0,3311.5,0.41852327]
[1768711001491,0.9731902,3313.2,3311.5,0.41852327]
[1768711001686,0.95233234,3313.1,3311.5,0.41852327]
[1768711001890,0.95233234,3313.0,3311.5,0.41852327]
[1768711002093,0.9731902,3313.2,3311.5,0.41852327]
[1768711002288,0.952332,3313.1,3311.5,0.41852327]
[1768711002490,0.952332,3313.0,3311.5,0.41852327]
[1768711002690,0.9731902,3313.2,3311.5,0.41852327]
[1768711002894,0.9523349,3313.1,3311.5,0.41852327]
[1768711003095,0.9523349,3313.0,3311.5,0.41852327]
[1768711003289,0.9731902,3313.2,3311.5,0.41852327]
[1768711003491,0.95242571,3313.1,3311.5,0.41852327]
[1768711003690,0.95242571,3313.0,3311.5,0.41852327]
[1768711003994,0.9731902,3313.2,3311.5,0.41852327]
[1768711004194,0.95242464,3313.1,3311.5,0.41852327]
[1768711004396,0.95242464,3313.0,3311.5,0.41852327]
[1768711004592,0.9731902,3313.2,3311.5,0.41852327]
[1768711004791,0.95242676,3313.1,3311.5,0.41852327]
[1768711004992,0.95242676,3313.0,3311.5,0.41852327]
[1768711005193,0.9731902,3313.2,3311.5,0.41852327]
[1768711005392,0.95108404,3313.1,3311.5,0.41852327]
[1768711005595,0.95108404,3313.0,3311.5,0.41852327]
[1768711005799,0.9731902,3313.2,3311.5,0.41852327]
[1768711005996,0.9510855,3313.1,3311.5,0.41852327]
[1768711006199,0.9510855,3313.0,3311.5,0.41852327]
[1768711006498,0.9731902,3313.2,3311.5,0.41852327]
[1768711006692,0.9510882,3313.1,3311.5,0.41852327]
[1768711006892,0.9510882,3313.0,3311.5,0.41852327]
[1768711007093,0.9731902,3313.2,3311.5,0.41852327]
[1768711007397,0.9510882,3313.1,3311.5,0.41852327]
[1768711007598,0.9510882,3313.0,3311.5,0.41852327]
[1768711007792,0.9731902,3313.2,3311.5,0.41852327]
[1768711007994,0.95108969,3313.1,3311.5,0.41852327]
[1768711008196,0.95108969,3313.0,3311.5,0.41852327]
[1768711008489,0.9731902,3313.2,3311.5,0.41852327]
[1768711008696,0.95109131,3313.1,3311.5,0.41852327]
[1768711008895,0.95109131,3313.0,3311.5,0.41852327]
[1768711009096,0.9731902,3313.2,3311.5,0.41852327]
[1768711009396,0.9511068,3313.1,3311.5,0.41852327]
[1768711009594,0.9511068,3313.0,3311.5,0.41852327]
[1768711009794,0.9731902,3313.2,3311.5,0.41852327]
[1768711009995,0.95110991,3313.1,3311.5,0.41852327]
[1768711010196,0.95110991,3313.0,3311.5,0.41852327]
[1768711010397,0.9731902,3313.2,3311.5,0.41852327]
[1768711010601,0.9511152,3313.1,3311.5,0.41852327]
[1768711010900,0.9511152,3313.0,3311.5,0.41852327]
[1768711011096,0.9731902,3313.2,3311.5,0.41852327]
[1768711011298,0.95111542,3313.1,3311.5,0.41852327]
[1768711011599,0.95111542,3313.0,3311.5,0.41852327]
[1768711011799,0.9731902,3313.2,3311.5,0.41852327]
[1768711011996,0.95111532,3313.1,3311.5,0.41852327]
[1768711012193,0.95111532,3313.0,3311.5,0.41852327]
[1768711012392,0.9731902,3313.2,3311.5,0.41852327]
[1768711012592,0.95111057,3313.1,3311.5,0.41852327]
[1768711012793,0.95111057,3313.0,3311.5,0.41852327]
[1768711012997,0.9731902,3313.2,3311.5,0.41852327]
[1768711013198,0.95110992,3313.1,3311.5,0.41852327]
[1768711013399,0.95110992,3313.0,3311.5,0.41852327]
[1768711013598,1.39904693,3313.2,3311.5,0.41852327]
[1768711013800,0.95110939,3313.1,3311.5,0.41852327]
[1768711014001,0.95110939,3313.0,3311.5,0.41852327]
[1768711014303,1.39904693,3313.2,3311.5,0.41852327]
[1768711014599,0.95110861,3313.1,3311.5,0.41852327]
[1768711014805,0.95110861,3313.0,3311.5,0.41852327]
[1768711014999,0.95110861,3312.9,3311.5,0.41852327]
[1768711015204,1.39904693,3313.2,3311.5,0.41852327]
[1768711015397,0.95111591,3313.1,3311.5,0.41852327]
[1768711015597,0.95111591,3313.0,3311.5,0.41852327]
[1768711015796,0.95111591,3312.9,3311.5,0.41852327]
[1768711015997,1.39904693,3313.2,3311.5,0.41852327]
[1768711016197,0.95109573,3313.1,3311.5,0.41852327]
[1768711016398,0.95109573,3313.0,3311.5,0.41852327]
[1768711016704,1.39904693,3313.2,3311.5,0.41852327]
[1768711016897,0.95108378,3313.1,3311.5,0.41852327]
[1768711017100,0.95108378,3313.0,3311.5,0.41852327]
[1768711017300,1.39904693,3313.2,3311.5,0.41852327]
[1768711017613,0.9510791,3313.1,3311.5,0.41852327]
[1768711017806,0.9510791,3313.0,3311.5,0.41852327]
[1768711018006,1.39904693,3313.2,3311.5,0.41852327]
[1768711018209,0.95107938,3313.1,3311.5,0.41852327]
[1768711018409,0.95107938,3313.0,3311.5,0.41852327]
[1768711018610,1.39904693,3313.2,3311.5,0.41852327]
[1768711018812,0.95107455,3313.1,3311.5,0.41852327]
[1768711019013,0.95107455,3313.0,3311.5,0.41852327]
[1768711019214,1.39904693,3313.2,3311.5,0.41852327]
[1768711019413,0.95107455,3313.1,3311.5,0.41852327]
[1768711019614,0.95107455,3313.0,3311.5,0.41852327]
[1768711019812,1.39904693,3313.2,3311.5,0.41852327]
[1768711020007,0.95107062,3313.1,3311.5,0.41852327]
[1768711020207,0.95107062,3313.0,3311.5,0.41852327]
[1768711020404,0.42585673,3313.6,3311.6,0.41487903]
[1768711020613,1.24787548,3313.5,3311.6,0.41487903]
[1768711020811,1.24787548,3313.4,3311.6,0.41487903]
[1768711021012,0.95106622,3313.3,3311.6,0.41487903]
[1768711021213,0.95106622,3313.2,3311.6,0.41487903]
[1768711021418,0.95106622,3313.1,3311.6,0.41487903]
[1768711021616,0.95106622,3313.0,3311.6,0.41487903]
[1768711021818,0.42585673,3313.6,3311.6,0.41487903]
[1768711022019,1.24786967,3313.5,3311.6,0.41487903]
[1768711022217,0.42585673,3313.6,3311.6,0.41487903]
[1768711022218,1.24786967,3313.4,3311.6,0.41487903]
[1768711022420,0.95106199,3313.3,3311.6,0.41487903]
[1768711022615,0.95106199,3313.2,3311.6,0.41487903]
[1768711022825,0.95106199,3313.1,3311.6,0.41487903]
[1768711023119,0.95106199,3313.0,3311.6,0.41487903]
[1768711023319,0.42585673,3313.6,3311.6,0.41487903]
[1768711023518,1.2478642,3313.5,3311.6,0.41487903]
[1768711023724,1.2478642,3313.4,3311.6,0.41487903]
[1768711023914,0.95105755,3313.3,3311.6,0.41487903]
[1768711024114,0.95105755,3313.2,3311.6,0.41487903]
[1768711024314,0.95105755,3313.1,3311.6,0.41487903]
[1768711024610,0.95105755,3313.0,3311.6,0.41487903]
[1768711024813,0.42585673,3313.6,3311.6,0.41487903]
[1768711025014,1.24785476,3313.5,3311.6,0.41487903]
[1768711025217,1.24785476,3313.4,3311.6,0.41487903]
[1768711025422,0.95105062,3313.3,3311.6,0.41487903]
[1768711025624,0.95105062,3313.2,3311.7,0.41487903]
[1768711025825,0.95105062,3313.1,3311.7,0.41487903]
[1768711026025,0.95105062,3313.0,3311.7,0.41487903]
[1768711026222,0.42585673,3313.6,3311.7,0.41487903]
[1768711026522,1.24781164,3313.5,3311.7,0.41487903]
[1768711026724,0.95101282,3313.4,3311.7,0.41487903]
[1768711026924,0.95101282,3313.3,3311.7,0.41487903]
[1768711027127,0.95101282,3313.2,3311.7,0.41487903]
[1768711027426,0.95101282,3313.1,3311.7,0.41487903]
[1768711027625,0.95101282,3313.0,3311.7,0.41487903]
[1768711027825,0.42585673,3313.6,3311.7,0.41487903]
[1768711028032,1.24779046,3313.5,3311.7,0.41487903]
[1768711028218,0.95100271,3313.4,3311.7,0.41487903]
[1768711028416,0.95100271,3313.3,3311.7,0.41487903]
[1768711028622,0.95100271,3313.2,3311.7,0.41487903]
[1768711028823,0.95100271,3313.1,3311.7,0.41487903]
[1768711029023,0.95100271,3313.0,3311.7,0.41487903]
[1768711029223,0.42585673,3313.6,3311.7,0.41487903]
[1768711029423,1.24776999,3313.5,3311.7,0.41487903]
[1768711029624,0.9509855,3313.4,3311.7,0.41487903]
[1768711029924,0.9509855,3313.3,3311.7,0.41487903]
[1768711030130,0.9509855,3313.2,3311.7,0.41487903]
[1768711030321,0.9509855,3313.1,3311.7,0.41487903]
[1768711030521,0.9509855,3313.0,3311.7,0.41487903]
[1768711030827,0.42585673,3313.6,3311.7,0.41487903]
[1768711031129,1.24775537,3313.5,3311.7,0.41487903]
[1768711031325,0.95097592,3313.4,3311.7,0.41487903]
[1768711031521,0.95097592,3313.3,3311.7,0.41487903]
[1768711031826,0.95097592,3313.2,3311.7,0.41487903]
[1768711032028,0.95097592,3313.1,3311.7,0.41487903]
[1768711032223,0.95097592,3313.0,3311.7,0.41487903]
[1768711032424,0.42585673,3313.6,3311.7,0.41487903]
[1768711032723,1.24774128,3313.5,3311.7,0.41487903]
[1768711032923,0.95096517,3313.4,3311.7,0.41487903]
[1768711033122,0.95096517,3313.3,3311.7,0.41487903]
[1768711033323,0.95096517,3313.2,3311.7,0.41487903]
[1768711033527,0.95096517,3313.1,3311.7,0.41487903]
[1768711033724,0.95096517,3313.0,3311.7,0.41487903]
[1768711033926,0.42585673,3313.6,3311.7,0.41487903]
[1768711034125,1.24773705,3313.5,3311.7,0.41487903]
[1768711034328,0.95096194,3313.4,3311.7,0.41487903]
[1768711034521,0.95096194,3313.3,3311.7,0.41487903]
[1768711034721,0.95096194,3313.2,3311.7,0.41487903]
[1768711034922,0.95096194,3313.1,3311.7,0.41487903]
[1768711035122,0.95096194,3313.0,3311.7,0.41487903]
[1768711035421,0.42585673,3313.6,3311.7,0.41487903]
[1768711035620,1.24803995,3313.5,3311.7,0.41487903]
[1768711035822,0.95126646,3313.4,3311.7,0.41487903]
[1768711036023,0.95126646,3313.3,3311.7,0.41487903]
[1768711036222,0.95126646,3313.2,3311.7,0.41487903]
[1768711036424,0.95126646,3313.1,3311.7,0.41487903]
[1768711036623,0.95126646,3313.0,3311.7,0.41487903]
[1768711036917,0.42585673,3313.6,3311.7,0.41487903]
[1768711037123,1.24803743,3313.5,3311.7,0.41487903]
[1768711037324,0.95126454,3313.4,3311.7,0.41487903]
[1768711037626,0.95126454,3313.3,3311.7,0.41487903]
[1768711037827,0.95126454,3313.2,3311.7,0.41487903]
[1768711038027,0.95126454,3313.1,3311.7,0.41487903]
[1768711038228,0.95126454,3313.0,3311.7,0.41487903]
[1768711038429,0.42585673,3313.6,3311.7,0.41487903]
[1768711038630,1.24803317,3313.5,3311.7,0.41487903]
[1768711038829,0.95126129,3313.4,3311.7,0.41487903]
[1768711039033,0.95126129,3313.3,3311.7,0.41487903]
[1768711039229,0.95126129,3313.2,3311.7,0.41487903]
[1768711039429,1.92423535,3313.1,3311.8,0.41487903]
[1768711039626,0.95126129,3313.0,3311.8,0.41487903]
[1768711039827,0.97297406,3313.1,3311.8,0.41487903]
[1768711040134,0.9512605,3313.0,3311.8,0.41487903]
[1768711040335,0.97297406,3313.1,3311.8,0.41487903]
[1768711040635,0.9512569,3313.0,3311.8,0.41487903]
[1768711040834,0.97297406,3313.1,3311.8,0.41487903]
[1768711041036,0.95125781,3313.0,3311.8,0.41487903]
[1768711041235,0.97297406,3313.1,3311.8,0.41487903]
[1768711041435,0.95125778,3313.0,3311.8,0.41487903]
[1768711041638,0.97297406,3313.1,3311.8,0.41487903]
[1768711041936,0.95125769,3313.0,3311.8,0.41487903]
[1768711042137,0.97297406,3313.1,3311.8,0.41487903]
[1768711042336,0.95125638,3313.0,3311.8,0.41487903]
[1768711042638,0.97297406,3313.1,3311.8,0.41487903]
[1768711042836,0.95125433,3313.0,3311.8,0.41487903]
[1768711043036,0.97297406,3313.1,3311.8,0.41487903]
[1768711043238,0.95125464,3313.0,3311.8,0.41487903]
[1768711043438,0.97297406,3313.1,3311.8,0.41487903]
[1768711043638,0.95125767,3313.0,3311.8,0.41487903]
[1768711043827,0.97297406,3313.1,3311.8,0.41487903]
[1768711044030,0.9512578,3313.0,3311.8,0.41487903]
[1768711044234,0.97297406,3313.1,3311.8,0.41487903]
[1768711044431,0.95126151,3313.0,3311.8,0.41487903]
[1768711044634,0.97297406,3313.1,3311.8,0.41487903]
[1768711044938,0.95126151,3313.0,3311.8,0.41487903]
[1768711045130,0.97297406,3312.9,3311.6,1.12400406]
[1768711054248,0.97297406,3312.9,3311.6,1.5405732]
[1768711055648,0.97297406,3312.9,3311.6,0.56759914]
[1768711069576,0.97297406,3312.7,3311.6,0.56759914]
[1768711077978,0.43371669,3313.2,3311.6,0.56759914]
[1768711078181,0.97297406,3312.9,3311.6,0.56759914]
[1768711084581,0.43371669,3313.2,3311.6,0.56759914]
[1768711084785,0.97297406,3312.9,3311.6,0.56759914]
[1768711089781,0.97297406,3312.9,3311.7,0.42016196]
[1768711099294,0.43371669,3313.2,3311.7,0.42016196]
[1768711099599,0.95433742,3313.1,3311.7,0.42016196]
[1768711099895,0.95433742,3313.0,3311.7,0.42016196]
[1768711100080,0.43371669,3313.2,3311.7,0.42016196]
[1768711100081,0.95433742,3312.9,3311.7,0.42016196]
[1768711100284,0.43371669,3313.2,3311.7,0.42016196]
[1768711100480,0.95433763,3313.1,3311.7,0.42016196]
[1768711100685,0.95433763,3313.0,3311.7,0.42016196]
[1768711100894,0.95433763,3312.9,3311.7,0.42016196]
[1768711101096,0.43371669,3313.2,3311.7,0.42016196]
[1768711101295,0.95433568,3313.1,3311.7,0.42016196]
[1768711101596,0.95433568,3313.0,3311.7,0.42016196]
[1768711101788,0.95433568,3312.9,3311.7,0.42016196]
[1768711101989,0.43371669,3313.2,3311.7,0.42016196]
[1768711102286,0.95434071,3313.1,3311.7,0.42016196]
[1768711102489,0.95434071,3313.0,3311.7,0.42016196]
[1768711102689,0.95434071,3312.9,3311.7,0.42016196]
[1768711102990,0.43371669,3313.2,3311.7,0.42016196]
[1768711103295,0.95434888,3313.1,3311.7,0.42016196]
[1768711103497,0.95434888,3313.0,3311.7,0.42016196]
[1768711103687,0.95434888,3312.9,3311.7,0.42016196]
[1768711103887,0.43371669,3313.2,3311.7,0.42016196]
[1768711104100,0.95435788,3313.1,3311.7,0.42016196]
[1768711104301,0.95435788,3313.0,3311.7,0.42016196]
[1768711104595,0.95435788,3312.9,3311.7,0.42016196]
[1768711104799,0.43371669,3313.2,3311.7,0.42016196]
[1768711104992,0.95436825,3313.1,3311.7,0.42016196]
[1768711105294,0.95436825,3313.0,3311.7,0.42016196]
[1768711105491,0.95436825,3312.9,3311.7,0.42016196]
[1768711105692,0.43371669,3313.2,3311.7,0.42016196]
[1768711105895,0.95438399,3313.1,3311.7,0.42016196]
[1768711106093,0.95438399,3313.0,3311.7,0.42016196]
[1768711106306,0.95438399,3312.9,3311.7,0.42016196]
[1768711106598,0.43371669,3313.2,3311.7,0.42016196]
[1768711106797,0.95439321,3313.1,3311.7,0.42016196]
[1768711106997,0.95439321,3313.0,3311.7,0.42016196]
[1768711107296,0.95439321,3312.9,3311.7,0.42016196]
[1768711107498,0.43371669,3313.2,3311.7,0.42016196]
[1768711107698,0.95440594,3313.1,3311.7,0.42016196]
[1768711107900,0.95440594,3313.0,3311.7,0.42016196]
[1768711108099,0.95440594,3312.9,3311.7,0.42016196]
[1768711108301,0.43371669,3313.2,3311.7,0.42016196]
[1768711108498,0.95441491,3313.1,3311.7,0.42016196]
[1768711108699,0.95441491,3313.0,3311.7,0.42016196]
[1768711108900,0.95441491,3312.9,3311.7,0.42016196]
[1768711109096,0.43371669,3313.2,3311.7,0.42016196]
[1768711109395,0.95441465,3313.1,3311.7,0.42016196]
[1768711109693,0.95441465,3313.0,3311.7,0.42016196]
[1768711109897,0.95441465,3312.9,3311.7,0.42016196]
[1768711110192,0.43371669,3313.2,3311.7,0.42016196]
[1768711110393,0.95441534,3313.1,3311.7,0.42016196]
[1768711110601,0.95441534,3313.0,3311.7,0.42016196]
[1768711110798,0.95441534,3312.9,3311.7,0.42016196]
[1768711110999,0.43371669,3313.2,3311.7,0.42016196]
[1768711111203,0.95441858,3313.1,3311.7,0.42016196]
[1768711111393,0.95441858,3313.0,3311.7,0.42016196]
[1768711111588,0.95441858,3312.9,3311.7,0.42016196]
[1768711111798,0.43371669,3313.2,3311.7,0.42016196]
[1768711112006,0.9544194,3313.1,3311.7,0.42016196]
[1768711112305,0.9544194,3313.0,3311.7,0.42016196]
[1768711112493,0.9544194,3312.9,3311.7,0.42016196]
[1768711112693,0.43371669,3313.2,3311.7,0.42016196]
[1768711112904,0.95442358,3313.1,3311.7,0.42016196]
[1768711113107,0.95442358,3313.0,3311.7,0.42016196]
[1768711113298,0.95442358,3312.9,3311.7,0.42016196]
[1768711113494,0.43371669,3313.2,3311.7,0.42016196]
[1768711113695,0.95446006,3313.1,3311.7,0.42016196]
[1768711113895,0.95446006,3313.0,3311.7,0.42016196]
[1768711114102,0.95446006,3312.9,3311.7,0.42016196]
[1768711114308,0.97310983,3313.4,3311.7,0.42016196]
[1768711114498,0.9544593,3313.3,3311.7,0.42016196]
[1768711114796,0.9544593,3313.2,3311.7,0.42016196]
[1768711115099,0.9544593,3313.1,3311.7,0.42016196]
[1768711115289,0.9544593,3313.0,3311.7,0.42016196]
[1768711115496,0.9544593,3312.9,3311.7,0.42016196]
[1768711115690,0.97310983,3313.4,3311.7,0.42016196]
[1768711115894,0.95445721,3313.3,3311.7,0.42016196]
[1768711116100,0.95445721,3313.2,3311.7,0.42016196]
[1768711116302,0.95445721,3313.1,3311.7,0.42016196]
[1768711116600,0.95445721,3313.0,3311.7,0.42016196]
[1768711116801,0.95445721,3312.9,3311.7,0.42016196]
[1768711116997,0.97310983,3313.4,3311.7,0.42016196]
[1768711117197,0.9544563,3313.3,3311.7,0.42016196]
[1768711117400,0.9544563,3313.2,3311.7,0.42016196]
[1768711117689,0.9544563,3313.1,3311.7,0.42016196]
[1768711117888,0.97310983,3313.4,3311.7,0.42016196]
[1768711117889,0.9544563,3313.0,3311.7,0.42016196]
[1768711118099,0.9544563,3312.9,3311.7,0.42016196]
[1768711118301,0.97310983,3313.4,3311.7,0.42016196]
[1768711118501,0.9544528,3313.3,3311.7,0.42016196]
[1768711118701,0.9544528,3313.2,3311.7,0.42016196]
[1768711118902,0.9544528,3313.1,3311.7,0.42016196]
[1768711119200,0.9544528,3313.0,3311.7,0.42016196]
[1768711119400,0.9544528,3312.9,3311.7,0.42016196]
[1768711119600,0.97310983,3313.4,3311.7,0.42016196]
[1768711119796,0.95445221,3313.3,3311.7,0.42016196]
[1768711119997,0.95445221,3313.2,3311.7,0.42016196]
[1768711120197,0.95445221,3313.1,3311.7,0.42016196]
[1768711120404,0.95445221,3313.0,3311.7,0.42016196]
[1768711120604,0.95445221,3312.9,3311.7,0.42016196]
[1768711120904,0.42986468,3313.6,3311.7,0.42016196]
[1768711121104,1.25126231,3313.5,3311.7,0.42016196]
[1768711121304,1.25126231,3313.4,3311.7,0.42016196]
[1768711121492,0.95445009,3313.3,3311.7,0.42016196]
[1768711121694,0.95445009,3313.2,3311.7,0.42016196]
[1768711121903,0.42986468,3313.6,3311.7,0.42016196]
[1768711121904,0.95445009,3313.1,3311.7,0.42016196]
[1768711122096,0.95445009,3313.0,3311.7,0.42016196]
[1768711122296,0.95445009,3312.9,3311.7,0.42016196]
[1768711122502,0.42986468,3313.6,3311.7,0.42016196]
[1768711122702,1.25125639,3313.5,3311.7,0.42016196]
[1768711122902,1.25125639,3313.4,3311.7,0.42016196]
[1768711123103,0.95444557,3313.3,3311.7,0.42016196]
[1768711123304,0.95444557,3313.2,3311.7,0.42016196]
[1768711123503,0.95444557,3313.1,3311.7,0.42016196]
[1768711123804,0.95444557,3313.0,3311.7,0.42016196]
[1768711124006,0.95444557,3312.9,3311.7,0.42016196]
[1768711124303,0.42986468,3313.6,3311.7,0.42016196]
[1768711124606,1.25123489,3313.5,3311.7,0.42016196]
[1768711124808,1.25123489,3313.4,3311.7,0.42016196]
[1768711125002,0.95442917,3313.3,3311.7,0.42016196]
[1768711125202,0.95442917,3313.2,3311.7,0.42016196]
[1768711125406,0.95442917,3313.1,3311.7,0.42016196]
[1768711125606,0.95442917,3313.0,3311.7,0.42016196]
[1768711125906,0.95442917,3312.9,3311.7,0.42016196]
[1768711126118,0.42986468,3313.6,3311.7,0.42016196]
[1768711126298,1.65840997,3313.5,3311.7,0.42016196]
[1768711126498,1.25091137,3313.4,3311.7,0.42016196]
[1768711126699,0.95410427,3313.3,3311.7,0.42016196]
[1768711126994,0.95410427,3313.2,3311.7,0.42016196]
[1768711127194,0.95410427,3313.1,3311.7,0.42016196]
[1768711127394,0.95410427,3313.0,3311.7,0.42016196]
[1768711127612,0.95410427,3312.9,3311.7,0.42016196]
[1768711127806,0.4074986,3313.5,3311.7,0.42016196]
[1768711128003,1.25092173,3313.4,3311.7,0.42016196]
[1768711128207,0.95411215,3313.3,3311.7,0.42016196]
[1768711128409,0.95411215,3313.2,3311.7,0.42016196]
[1768711128610,0.95411215,3313.1,3311.7,0.42016196]
[1768711128905,0.95411215,3313.0,3311.7,0.42016196]
[1768711129108,0.95411215,3312.9,3311.7,0.42016196]
[1768711129408,0.4074986,3313.5,3311.7,0.42016196]
[1768711129597,1.25092319,3313.4,3311.7,0.42016196]
[1768711129796,0.95411327,3313.3,3311.7,0.42016196]
[1768711130010,0.95411327,3313.2,3311.7,0.42016196]
[1768711130205,0.95411327,3313.1,3311.7,0.42016196]
[1768711130403,0.95411327,3313.0,3311.7,0.42016196]
[1768711130604,0.95411327,3312.9,3311.7,0.42016196]
[1768711130804,0.4074986,3313.5,3311.7,0.42016196]
[1768711131008,1.2509197,3313.4,3311.7,0.42016196]
[1768711131207,0.95411064,3313.3,3311.7,0.42016196]
[1768711131406,0.95411064,3313.2,3311.7,0.42016196]
[1768711131705,0.95411064,3313.1,3311.7,0.42016196]
[1768711131907,0.95411064,3313.0,3311.7,0.42016196]
[1768711132210,0.95411064,3312.9,3311.7,0.42016196]
[1768711132413,0.4074986,3313.5,3311.7,0.42016196]
[1768711132605,1.25092903,3313.4,3311.7,0.42016196]
[1768711132897,0.95411773,3313.3,3311.7,0.42016196]
[1768711133101,0.95411773,3313.2,3311.7,0.42016196]
[1768711133301,0.95411773,3313.1,3311.7,0.42016196]
[1768711133597,0.95411773,3313.0,3311.7,0.42016196]
[1768711133804,0.95411773,3312.9,3311.7,0.42016196]
[1768711134001,0.4074986,3313.5,3311.7,0.42016196]
[1768711134212,1.25100816,3313.4,3311.7,0.42016196]
[1768711134407,0.95417809,3313.3,3311.7,0.42016196]
[1768711134607,0.4074986,3313.5,3311.7,0.42016196]
[1768711134608,0.95417809,3313.2,3311.7,0.42016196]
[1768711134798,0.95417809,3313.1,3311.7,0.42016196]
[1768711135003,0.95417809,3313.0,3311.7,0.42016196]
[1768711135203,0.95417809,3312.9,3311.7,0.42016196]
[1768711135404,0.4074986,3313.5,3311.7,0.42016196]
[1768711135601,1.25101319,3313.4,3311.7,0.42016196]
[1768711135812,0.95418193,3313.3,3311.7,0.42016196]
[1768711136009,0.95418193,3313.2,3311.7,0.42016196]
[1768711136209,0.95418193,3313.1,3311.7,0.42016196]
[1768711136413,0.95418193,3313.0,3311.7,0.42016196]
[1768711136609,0.95418193,3312.9,3311.7,0.42016196]
[1768711136911,0.4074986,3313.5,3311.7,0.42016196]
[1768711137110,1.25101453,3313.4,3311.7,0.42016196]
[1768711137310,0.95418297,3313.3,3311.7,0.42016196]
[1768711137511,0.95418297,3313.2,3311.7,0.42016196]
[1768711137711,0.95418297,3313.1,3311.7,0.42016196]
[1768711137911,0.4074986,3313.5,3311.7,0.42016196]
[1768711137912,0.95418297,3313.0,3311.7,0.42016196]
[1768711138113,0.95418297,3312.9,3311.7,0.42016196]
[1768711138317,0.4074986,3313.5,3311.7,0.42016196]
[1768711138516,1.25099956,3313.4,3311.7,0.42016196]
[1768711138817,0.95417159,3313.3,3311.7,0.42016196]
[1768711139015,0.95417159,3313.2,3311.7,0.42016196]
[1768711139311,0.95417159,3313.1,3311.7,0.42016196]
[1768711139513,0.95417159,3313.0,3311.7,0.42016196]
[1768711139820,0.95417159,3312.9,3311.7,0.42016196]
[1768711140015,0.4074986,3313.5,3311.7,0.42016196]
[1768711140315,1.25094704,3313.4,3311.7,0.42016196]
[1768711140516,0.95413152,3313.3,3311.7,0.42016196]
[1768711140816,0.95413152,3313.2,3311.7,0.42016196]
[1768711141010,0.95413152,3313.1,3311.7,0.42016196]
[1768711141210,0.95413152,3313.0,3311.7,0.42016196]